fUST/lending_fUST_20250123
["ID","MTS","AMOUNT","RATE_DAILY","PERIOD"]
[350019497,1737570645283,-500.0,0.00019452,3]
[350019498,1737570645293,-937.31,0.00019452,3]
[350019499,1737570645304,-1650.73,0.00019452,3]
[350019500,1737570645314,-9397.98,0.00019452,3]
[350019501,1737570645324,-1990.61,0.00019452,3]
[350019502,1737570645334,-500.0,0.00019452,3]
[350019503,1737570645344,-485.86535203,0.00019452,3]
[350019504,1737570645358,-958.08,0.00019452,3]
[350019505,1737570645368,-3000.0,0.00019489,2]
[350019506,1737570645378,-153.82701137,0.0001957,2]
[350019507,1737570645390,-302.8788636,0.0001957,2]
[350019508,1737570645401,-500.0,0.00019589,3]
[350019509,1737570645411,-151.0,0.00019589,2]
[350019510,1737570645422,-151.0,0.00019589,2]
[350019511,1737570645433,-151.0,0.00019589,2]
[350019512,1737570645445,-500.0,0.00019589,3]
[350019513,1737570645457,-500.0,0.00019589,3]
[350019514,1737570645468,-739.65,0.00019589,3]
[350019515,1737570645478,-500.0,0.00019589,3]
[350019516,1737570645489,-500.0,0.00019589,3]
[350019517,1737570645500,-500.0,0.00019589,3]
[350019518,1737570645511,-886.88,0.00019589,3]
[350019519,1737570645521,-500.0,0.00019589,3]
[350019520,1737570645531,-1063.53,0.00019589,3]
[350019521,1737570645541,-534.39,0.00019589,3]
[350019522,1737570645551,-500.0,0.00019589,3]
[350019523,1737570645562,-500.0,0.00019589,3]
[350019524,1737570645573,-500.0,0.00019589,3]
[350019525,1737570645583,-151.0,0.00019589,2]
[350019526,1737570645593,-151.0,0.00019589,2]
[350019527,1737570645611,-151.0,0.00019589,2]
[350019528,1737570645622,-907.28,0.00019589,3]
[350019529,1737570645632,-408.06396409,0.00019589,3]
[350019530,1737570645642,-855.22,0.00019589,3]
[350019531,1737570645653,-1127.89,0.00019589,3]
[350019532,1737570645664,-500.0,0.00019589,3]
[350019533,1737570645675,-500.0,0.00019589,3]
[350019534,1737570645689,-180.85241935,0.00019589,3]
[350019535,1737570645700,-151.0,0.00019589,2]
[350019536,1737570645710,-151.0,0.00019589,2]
[350019537,1737570645721,-151.0,0.00019589,2]
[350019538,1737570645731,-500.0,0.00019589,3]
[350019539,1737570645741,-204.054572,0.00019589,2]
[350019540,1737570645751,-151.0,0.00019589,2]
[350019541,1737570645762,-151.0,0.00019589,2]
[350019542,1737570645771,-151.0,0.00019589,2]
[350019543,1737570645781,-500.0,0.00019589,3]
[350019544,1737570645791,-284.549241,0.00019589,2]
[350019545,1737570645801,-284.549241,0.00019589,2]
[350019546,1737570645811,-284.549241,0.00019589,2]
[350019547,1737570645820,-500.0,0.00019589,3]
[350019548,1737570645830,-284.549241,0.00019589,2]
[350019549,1737570645839,-284.549241,0.00019589,2]
[350019550,1737570645849,-284.549236,0.00019589,2]
[350019551,1737570645863,-500.0,0.00019589,3]
[350019552,1737570645873,-500.0,0.00019589,3]
[350019553,1737570645882,-500.0,0.00019589,3]
[350019554,1737570645891,-500.0,0.00019589,3]
[350019555,1737570645901,-500.0,0.00019589,3]
[350019556,1737570645910,-810.64,0.00019589,3]
[350019557,1737570645921,-505.26049825,0.00019589,3]
[350019558,1737570645932,-642.12,0.00019589,3]
[350019559,1737570645942,-500.0,0.00019589,3]
[350019560,1737570645952,-500.0,0.00019589,3]
[350019561,1737570645961,-851.53,0.00019589,3]
[350019562,1737570645971,-543.1,0.00019589,3]
[350019563,1737570645981,-151.0,0.00019589,2]
[350019564,1737570645991,-151.0,0.00019589,2]
[350019565,1737570646000,-151.0,0.00019589,2]
[350019566,1737570646010,-500.0,0.00019589,3]
[350019567,1737570646020,-500.0,0.00019589,3]
[350019568,1737570646029,-2758.21,0.00019589,3]
[350019569,1737570646039,-1183.25,0.00019589,2]
[350019571,1737570646048,-784.14,0.00019589,3]
[350019572,1737570646057,-1102.26,0.00019589,3]
[350019573,1737570646067,-1152.97,0.00019589,3]
[350019574,1737570646076,-669.86,0.00019589,3]
[350019575,1737570646085,-500.0,0.00019589,3]
[350019576,1737570646095,-4333.64,0.00019589,3]
[350019577,1737570646106,-672.13,0.00019589,3]
[350019578,1737570646115,-500.0,0.00019589,3]
[350019579,1737570646123,-1279.17,0.00019589,3]
[350019580,1737570646133,-500.0,0.00019589,3]
[350019581,1737570646142,-500.0,0.00019589,2]
[350019582,1737570646151,-6881.5,0.00019589,3]
[350019583,1737570646161,-24604.29,0.00019589,3]
[350019584,1737570646171,-500.0,0.00019589,3]
[350019585,1737570646180,-12127.62,0.00019589,3]
[350019586,1737570646190,-500.0,0.00019589,3]
[350019587,1737570646199,-505.23,0.00019589,3]
[350019588,1737570646208,-259.422633,0.00019589,2]
[350019589,1737570646217,-259.422633,0.00019589,2]
[350019590,1737570646226,-259.422633,0.00019589,2]
[350019591,1737570646235,-259.422625,0.00019589,2]
[350019593,1737570646245,-1144.67,0.00019589,3]
[350019595,1737570646254,-1282.25,0.00019589,3]
[350019597,1737570646263,-500.0,0.00019589,3]
[350019599,1737570646273,-3402.07,0.00019589,3]
[350019600,1737570646282,-500.0,0.00019589,3]
[350019601,1737570646292,-642.53,0.00019589,3]
[350019602,1737570646381,-500.0,0.00019589,3]
[350019603,1737570646391,-2356.85,0.00019589,3]
[350019604,1737570646400,-500.0,0.00019589,3]
[350019605,1737570646409,-2636.99,0.00019589,3]
[350019607,1737570646418,-795.33,0.00019589,3]
[350019609,1737570646428,-1380.43,0.00019589,3]
[350019611,1737570646437,-517.8,0.00019589,3]
[350019613,1737570646446,-1183.94,0.00019589,3]
[350019615,1737570646456,-612.56,0.00019589,3]
[350019617,1737570646465,-1187.94,0.00019589,3]
[350019619,1737570646474,-608.0,0.00019589,3]
[350019621,1737570646484,-913.27,0.00019589,3]
[350019623,1737570646494,-500.0,0.00019589,3]
[350019625,1737570646503,-1996.08,0.00019589,3]
[350019627,1737570646512,-500.0,0.00019589,3]
[350019629,1737570646522,-1405.0,0.00019589,3]
[350019631,1737570646531,-2466.55,0.00019589,3]
[350019632,1737570646540,-2227.78,0.00019589,3]
[350019633,1737570646550,-500.0,0.00019589,3]
[350019634,1737570646559,-937.31,0.00019589,3]
[350019635,1737570646569,-1650.73,0.00019589,3]
[350019636,1737570646578,-9397.98,0.00019589,3]
[350019637,1737570646587,-1990.61,0.00019589,3]
[350019638,1737570646596,-500.0,0.00019589,3]
[350019639,1737570646607,-958.08,0.00019589,3]
[350019640,1737570646617,-151.0,0.000197,2]
[350019641,1737570646626,-151.0,0.000197,2]
[350019642,1737570646635,-620.0,0.000197,2]
[350019643,1737570646644,-500.0,0.00019726,3]
[350019644,1737570646654,-500.0,0.00019726,3]
[350019645,1737570646663,-170.19010921,0.00019726,3]
[350019646,1737570646672,-739.65,0.00019726,3]
[350019647,1737570646682,-500.0,0.00019726,3]
[350019648,1737570646694,-500.0,0.00019726,3]
[350019649,1737570646704,-500.0,0.00019726,3]
[350019650,1737570646713,-886.88,0.00019726,3]
[350019651,1737570646722,-500.0,0.00019726,3]
[350019652,1737570646731,-1063.53,0.00019726,3]
[350019653,1737570646741,-534.39,0.00019726,3]
[350019654,1737570646751,-500.0,0.00019726,3]
[350019655,1737570646760,-500.0,0.00019726,3]
[350019656,1737570646770,-500.0,0.00019726,3]
[350019657,1737570646780,-907.28,0.00019726,3]
[350019658,1737570646789,-855.22,0.00019726,3]
[350019659,1737570646799,-1127.89,0.00019726,3]
[350019660,1737570646808,-500.0,0.00019726,3]
[350019661,1737570646819,-500.0,0.00019726,3]
[350019662,1737570646828,-500.0,0.00019726,3]
[350019663,1737570646837,-500.0,0.00019726,3]
[350019664,1737570646847,-500.0,0.00019726,3]
[350019665,1737570646859,-500.0,0.00019726,3]
[350019666,1737570646869,-500.0,0.00019726,3]
[350019667,1737570646879,-500.0,0.00019726,3]
[350019668,1737570646888,-500.0,0.00019726,3]
[350019669,1737570646898,-500.0,0.00019726,3]
[350019670,1737570646908,-810.64,0.00019726,3]
[350019671,1737570646917,-642.12,0.00019726,3]
[350019672,1737570646927,-500.0,0.00019726,3]
[350019673,1737570646937,-500.0,0.00019726,3]
[350019674,1737570646947,-851.53,0.00019726,3]
[350019675,1737570646957,-543.1,0.00019726,3]
[350019676,1737570646967,-500.0,0.00019726,3]
[350019677,1737570646976,-500.0,0.00019726,3]
[350019678,1737570646985,-2758.21,0.00019726,3]
[350019679,1737570646995,-1183.25,0.00019726,2]
[350019680,1737570647004,-784.14,0.00019726,3]
[350019681,1737570647014,-1102.26,0.00019726,3]
[350019682,1737570647023,-1152.97,0.00019726,3]
[350019683,1737570647033,-669.86,0.00019726,3]
[350019684,1737570647042,-192.40683618,0.00019726,3]
[350019685,1737570647051,-4333.64,0.00019726,3]
[350019686,1737570647060,-672.13,0.00019726,3]
[350019687,1737570647069,-500.0,0.00019726,3]
[350019688,1737570647079,-1279.17,0.00019726,3]
[350019689,1737570647088,-500.0,0.00019726,3]
[350019690,1737570647097,-500.0,0.00019726,2]
[350019691,1737570647109,-6881.5,0.00019726,3]
[350019692,1737570647118,-24604.29,0.00019726,3]
[350019693,1737570647127,-500.0,0.00019726,3]
[350019694,1737570647137,-12127.62,0.00019726,3]
[350019695,1737570647146,-500.0,0.00019726,3]
[350019696,1737570647155,-505.23,0.00019726,3]
[350019697,1737570647165,-1144.67,0.00019726,3]
[350019698,1737570647174,-1282.25,0.00019726,3]
[350019699,1737570647183,-500.0,0.00019726,3]
[350019700,1737570647193,-3402.07,0.00019726,3]
[350019701,1737570647202,-500.0,0.00019726,3]
[350019702,1737570647212,-642.53,0.00019726,3]
[350019703,1737570647221,-500.0,0.00019726,3]
[350019704,1737570647229,-2356.85,0.00019726,3]
[350019705,1737570647239,-500.0,0.00019726,3]
[350019706,1737570647248,-2636.99,0.00019726,3]
[350019707,1737570647257,-795.33,0.00019726,3]
[350019708,1737570647267,-1380.43,0.00019726,3]
[350019709,1737570647276,-517.8,0.00019726,3]
[350019710,1737570647286,-1183.94,0.00019726,3]
[350019711,1737570647295,-612.56,0.00019726,3]
[350019712,1737570647305,-1187.94,0.00019726,3]
[350019713,1737570647314,-608.0,0.00019726,3]
[350019714,1737570647323,-913.27,0.00019726,3]
[350019715,1737570647333,-500.0,0.00019726,3]
[350019716,1737570647342,-1996.08,0.00019726,3]
[350019717,1737570647353,-500.0,0.00019726,3]
[350019718,1737570647362,-1405.0,0.00019726,3]
[350019719,1737570647371,-2466.55,0.00019726,3]
[350019720,1737570647380,-2227.78,0.00019726,3]
[350019721,1737570647390,-500.0,0.00019726,3]
[350019722,1737570647399,-937.31,0.00019726,3]
[350019723,1737570647409,-1650.73,0.00019726,3]
[350019724,1737570647417,-9397.98,0.00019726,3]
[350019725,1737570647427,-1990.61,0.00019726,3]
[350019726,1737570647436,-500.0,0.00019726,3]
[350019727,1737570647445,-958.08,0.00019726,3]
[350019728,1737570647454,-302.8788636,0.0001976,2]
[350019729,1737570647464,-500.0,0.00019768,2]
[350019730,1737570647473,-500.39717318,0.0001979,2]
[350019731,1737570647483,-500.0,0.0001979,2]
[350019732,1737570647492,-500.0,0.0001979,2]
[350019733,1737570647504,-151.0,0.000198,2]
[350019734,1737570647514,-500.0,0.00019824,2]
[350019735,1737570647524,-500.69160546,0.00019824,2]
[350019736,1737570647534,-500.0,0.00019836,2]
[350019737,1737570647545,-152.17093827,0.00019857,2]
[350019738,1737570647554,-500.0,0.00019861,2]
[350019739,1737570647563,-500.0,0.00019863,3]
[350019740,1737570647572,-739.65,0.00019863,3]
[350019741,1737570647582,-500.0,0.00019863,3]
[350019742,1737570647592,-500.0,0.00019863,3]
[350019743,1737570647602,-216.37,0.00019863,3]
[350019744,1737570647612,-886.88,0.00019863,3]
[350019745,1737570647622,-500.0,0.00019863,3]
[350019746,1737570647631,-1063.53,0.00019863,3]
[350019747,1737570647641,-534.39,0.00019863,3]
[350019748,1737570647650,-500.0,0.00019863,3]
[350019749,1737570647659,-500.0,0.00019863,3]
[350019750,1737570647671,-500.0,0.00019863,3]
[350019751,1737570647684,-907.28,0.00019863,3]
[350019752,1737570647694,-855.22,0.00019863,3]
[350019753,1737570647703,-1127.89,0.00019863,3]
[350019754,1737570647712,-500.0,0.00019863,3]
[350019755,1737570647723,-500.0,0.00019863,3]
[350019756,1737570647733,-500.0,0.00019863,3]
[350019757,1737570647742,-500.0,0.00019863,3]
[350019758,1737570647752,-500.0,0.00019863,3]
[350019759,1737570647763,-500.0,0.00019863,3]
[350019760,1737570647775,-500.0,0.00019863,3]
[350019761,1737570647784,-500.0,0.00019863,3]
[350019762,1737570647794,-500.0,0.00019863,3]
[350019763,1737570647803,-500.0,0.00019863,3]
[350019764,1737570647813,-810.64,0.00019863,3]
[350019765,1737570647822,-642.12,0.00019863,3]
[350019766,1737570647832,-500.0,0.00019863,3]
[350019767,1737570647841,-500.0,0.00019863,3]
[350019768,1737570647853,-851.53,0.00019863,3]
[350019769,1737570647862,-543.1,0.00019863,3]
[350019770,1737570647871,-500.0,0.00019863,3]
[350019771,1737570647882,-500.0,0.00019863,3]
[350019772,1737570647891,-2758.21,0.00019863,3]
[350019773,1737570647900,-1183.25,0.00019863,2]
[350019774,1737570647910,-784.14,0.00019863,3]
[350019775,1737570647921,-1102.26,0.00019863,3]
[350019776,1737570647931,-1152.97,0.00019863,3]
[350019777,1737570647941,-669.86,0.00019863,3]
[350019778,1737570647950,-4333.64,0.00019863,3]
[350019779,1737570647960,-672.13,0.00019863,3]
[350019780,1737570647969,-500.0,0.00019863,3]
[350019781,1737570647979,-1279.17,0.00019863,3]
[350019782,1737570647989,-500.0,0.00019863,3]
[350019783,1737570647999,-500.0,0.00019863,2]
[350019784,1737570648009,-6881.5,0.00019863,3]
[350019785,1737570648018,-24604.29,0.00019863,3]
[350019786,1737570648028,-500.0,0.00019863,3]
[350019787,1737570648039,-12127.62,0.00019863,3]
[350019788,1737570648048,-500.0,0.00019863,3]
[350019789,1737570648058,-505.23,0.00019863,3]
[350019790,1737570648068,-1144.67,0.00019863,3]
[350019791,1737570648152,-1282.25,0.00019863,3]
[350019792,1737570648161,-500.0,0.00019863,3]
[350019793,1737570648171,-3402.07,0.00019863,3]
[350019794,1737570648181,-500.0,0.00019863,3]
[350019795,1737570648190,-642.53,0.00019863,3]
[350019796,1737570648199,-500.0,0.00019863,3]
[350019797,1737570648209,-2356.85,0.00019863,3]
[350019798,1737570648218,-500.0,0.00019863,3]
[350019799,1737570648228,-2636.99,0.00019863,3]
[350019800,1737570648238,-795.33,0.00019863,3]
[350019801,1737570648247,-1380.43,0.00019863,3]
[350019802,1737570648256,-517.8,0.00019863,3]
[350019803,1737570648266,-1183.94,0.00019863,3]
[350019804,1737570648276,-612.56,0.00019863,3]
[350019805,1737570648285,-1187.94,0.00019863,3]
[350019806,1737570648295,-608.0,0.00019863,3]
[350019807,1737570648305,-913.27,0.00019863,3]
[350019808,1737570648314,-500.0,0.00019863,3]
[350019809,1737570648323,-1996.08,0.00019863,3]
[350019810,1737570648333,-500.0,0.00019863,3]
[350019811,1737570648343,-1405.0,0.00019863,3]
[350019812,1737570648353,-2466.55,0.00019863,3]
[350019813,1737570648362,-2227.78,0.00019863,3]
[350019814,1737570648372,-500.0,0.00019863,3]
[350019815,1737570648381,-1650.73,0.00019863,3]
[350019816,1737570648391,-9397.98,0.00019863,3]
[350019817,1737570648404,-937.31,0.00019863,3]
[350019818,1737570648415,-1990.61,0.00019863,3]
[350019819,1737570648424,-500.0,0.00019863,3]
[350019820,1737570648433,-958.08,0.00019863,3]
[350019821,1737570648443,-429.847,0.00019884,2]
[350019822,1737570648452,-536.0,0.00019886,2]
[350019823,1737570648461,-2059.0,0.00019886,2]
[350019824,1737570648470,-2012.815,0.00019886,2]
[350019825,1737570648480,-395.0,0.00019886,2]
[350019826,1737570648497,-158.55992143,0.000199,2]
[350019827,1737570648506,-1180.38261505,0.000199,2]
[350019828,1737570648516,-454.3182954,0.0001995,4]
[350019829,1737570648525,-6603.76,0.0002,2]
[350019830,1737570648535,-160.0,0.0002,2]
[350019831,1737570648544,-4185.0,0.0002,2]
[350019832,1737570648554,-500.0,0.0002,3]
[350019833,1737570648563,-739.65,0.0002,3]
[350019834,1737570648572,-500.0,0.0002,3]
[350019835,1737570648582,-500.0,0.0002,3]
[350019836,1737570648592,-886.88,0.0002,3]
[350019837,1737570648601,-500.0,0.0002,3]
[350019838,1737570648611,-1063.53,0.0002,3]
[350019839,1737570648621,-534.39,0.0002,3]
[350019840,1737570648630,-500.0,0.0002,3]
[350019841,1737570648640,-500.0,0.0002,3]
[350019842,1737570648649,-500.0,0.0002,3]
[350019843,1737570648659,-907.28,0.0002,3]
[350019844,1737570648668,-855.22,0.0002,3]
[350019845,1737570648679,-1127.89,0.0002,3]
[350019846,1737570648689,-500.0,0.0002,3]
[350019847,1737570648703,-500.0,0.0002,3]
[350019848,1737570648713,-500.0,0.0002,3]
[350019849,1737570648722,-500.0,0.0002,3]
[350019850,1737570648731,-500.0,0.0002,3]
[350019851,1737570648742,-500.0,0.0002,3]
[350019852,1737570648751,-500.0,0.0002,3]
[350019853,1737570648761,-500.0,0.0002,3]
[350019854,1737570648771,-500.0,0.0002,3]
[350019855,1737570648780,-570.800002,0.0002,3]
[350019856,1737570648791,-810.64,0.0002,3]
[350019857,1737570648800,-642.12,0.0002,3]
[350019858,1737570648809,-500.0,0.0002,3]
[350019859,1737570648819,-500.0,0.0002,3]
[350019860,1737570648828,-851.53,0.0002,3]
[350019861,1737570648838,-543.1,0.0002,3]
[350019862,1737570648847,-500.0,0.0002,3]
[350019863,1737570648858,-500.0,0.0002,3]
[350019864,1737570648869,-1449.38165748,0.0002,3]
[350019865,1737570648887,-1308.82834252,0.0002,3]
[350019866,1737570648896,-947.54034608,0.0002,2]
[350019867,1737570649106,-72.00749871,0.00019178,2]
[350019868,1737570649124,-1204.63250129,0.00019178,2]
[350019869,1737570649133,-131.62248871,0.00019315,3]
[350019871,1737570803155,170.613167,0.00013973,2]
[350019878,1737571699575,170.299565,0.00013973,2]
[350019879,1737571748171,-196.91241669,0.00016999,2]
[350019880,1737571748194,-135.47205855,0.00017171,2]
[350019984,1737571832181,-61.44035814,0.00017171,2]
[350019986,1737571832191,-246.811512,0.00017947,2]
[350019988,1737571832201,-196.91241669,0.00018056,2]
[350019990,1737571832211,-211.97571317,0.00018062,2]
[350020343,1737571837734,-541.24776412,0.00018062,2]
[350020345,1737571837746,-1581.45641111,0.00018062,2]
[350020347,1737571837755,-544.07376917,0.000189,2]
[350020349,1737571837765,-500.0,0.00018903,2]
[350020351,1737571837774,-373.612,0.00019,2]
[350020353,1737571837783,-741.90851437,0.00019078,2]
[350020355,1737571837792,-577.24628742,0.00019078,2]
[350020357,1737571837804,-480.24815908,0.00019078,2]
[350020359,1737571837813,-448.08074312,0.00019112,2]
[350020362,1737571837825,-609.41370336,0.00019112,2]
[350020364,1737571837834,-161.52,0.00019112,2]
[350020365,1737571837845,-300.0,0.00019146,2]
[350020367,1737571837855,-1057.49444648,0.00019147,2]
[350020368,1737571837864,-500.0,0.00019178,2]
[350020369,1737571837874,-500.0,0.00019178,2]
[350020370,1737571837883,-500.0,0.00019178,2]
[350020371,1737571837892,-500.0,0.00019178,2]
[350020372,1737571837902,-628.21,0.00019178,2]
[350020373,1737571837911,-500.0,0.00019178,2]
[350020374,1737571837920,-690.55,0.00019178,2]
[350020376,1737571837931,-500.0,0.00019178,2]
[350020378,1737571837939,-584.1531463,0.00019178,2]
[350020379,1737571837950,-500.0,0.00019178,2]
[350020380,1737571837960,-245.23467051,0.00019178,2]
[350020381,1737571837969,-500.0,0.00019178,2]
[350020382,1737571837978,-798.92,0.00019178,2]
[350020383,1737571837987,-500.0,0.00019178,2]
[350020384,1737571837997,-181.32286382,0.00019178,2]
[350020385,1737571838006,-642.66,0.00019178,2]
[350020386,1737571838016,-500.0,0.00019178,2]
[350020387,1737571838028,-605.78,0.00019178,2]
[350020388,1737571838038,-500.0,0.00019178,2]
[350020389,1737571838047,-500.0,0.00019178,2]
[350020390,1737571838058,-500.0,0.00019178,2]
[350020391,1737571838068,-500.0,0.00019178,2]
[350020392,1737571838078,-500.0,0.00019178,2]
[350020393,1737571838087,-500.0,0.00019178,2]
[350020394,1737571838097,-500.0,0.00019178,2]
[350020395,1737571838106,-574.2,0.00019178,2]
[350020396,1737571838115,-500.0,0.00019178,2]
[350020397,1737571838124,-500.0,0.00019178,2]
[350020398,1737571838133,-603.17,0.00019178,2]
[350020399,1737571838143,-500.0,0.00019178,2]
[350020400,1737571838152,-500.0,0.00019178,2]
[350020401,1737571838162,-932.22,0.00019178,2]
[350020402,1737571838171,-1953.73,0.00019178,2]
[350020403,1737571838180,-500.0,0.00019178,2]
[350020404,1737571838189,-500.0,0.00019178,2]
[350020405,1737571838198,-864.73,0.00019178,2]
[350020406,1737571838207,-504.1,0.00019178,2]
[350020407,1737571838217,-500.0,0.00019178,2]
[350020408,1737571838226,-959.38,0.00019178,2]
[350020409,1737571838236,-3250.23,0.00019178,2]
[350020410,1737571838245,-500.0,0.00019178,2]
[350020411,1737571838255,-500.0,0.00019178,2]
[350020412,1737571838265,-502.39,0.00019178,2]
[350020413,1737571838274,-18453.22,0.00019178,2]
[350020414,1737571838283,-500.0,0.00019178,2]
[350020415,1737571838293,-500.0,0.00019178,2]
[350020416,1737571838302,-500.0,0.00019178,2]
[350020417,1737571838312,-858.51,0.00019178,2]
[350020418,1737571838321,-500.0,0.00019178,2]
[350020419,1737571838330,-500.0,0.00019178,2]
[350020420,1737571838339,-392.92826734,0.00019178,2]
[350020421,1737571838348,-596.5,0.00019178,2]
[350020422,1737571838357,-5161.12,0.00019178,2]
[350020423,1737571838366,-500.0,0.00019178,2]
[350020424,1737571838375,-500.0,0.00019178,2]
[350020425,1737571838385,-211.24319676,0.00019178,2]
[350020426,1737571838394,-500.0,0.00019178,2]
[350020427,1737571838403,-1767.64,0.00019178,2]
[350020428,1737571838510,-523.92,0.00019178,2]
[350020429,1737571838524,-500.97605867,0.00019178,2]
[350020430,1737571838534,-500.0,0.00019178,2]
[350020431,1737571838543,-500.0,0.00019178,2]
[350020432,1737571838553,-9146.24,0.00019178,2]
[350020433,1737571838562,-500.69444023,0.00019178,2]
[350020434,1737571838571,-1035.32,0.00019178,2]
[350020435,1737571838580,-2633.82,0.00019178,2]
[350020436,1737571838589,-250.13286148,0.00019178,2]
[350020437,1737571838598,-230.38630434,0.00019178,2]
[350020438,1737571838608,-1535.42,0.00019178,2]
[350020439,1737571838616,-2155.95,0.00019178,2]
[350020440,1737571838626,-982.52,0.00019178,2]
[350020441,1737571838635,-500.0,0.00019178,2]
[350020442,1737571838644,-890.96,0.00019178,2]
[350020443,1737571838653,-408.96809583,0.00019178,2]
[350020444,1737571838662,-500.0,0.00019178,2]
[350020445,1737571838671,-969.9,0.00019178,2]
[350020446,1737571838680,-500.0,0.00019178,2]
[350020447,1737571838689,-167.64253257,0.00019178,2]
[350020448,1737571838698,-500.0,0.00019178,2]
[350020449,1737571838708,-500.0,0.00019178,2]
[350020450,1737571838717,-744.65,0.00019178,2]
[350020451,1737571838726,-501.09,0.00019178,2]
[350020452,1737571838736,-771.01,0.00019178,2]
[350020453,1737571838747,-771.01,0.00019178,2]
[350020454,1737571838756,-771.01,0.00019178,2]
[350020455,1737571838766,-771.01,0.00019178,2]
[350020456,1737571838775,-771.01,0.00019178,2]
[350020457,1737571838783,-771.01,0.00019178,2]
[350020458,1737571838793,-771.01,0.00019178,2]
[350020459,1737571838802,-707.9,0.00019178,2]
[350020460,1737571838811,-42095.41,0.00019178,2]
[350020461,1737571838820,-1146.81,0.00019178,2]
[350020462,1737571838830,-500.0,0.00019178,2]
[350020463,1737571838839,-500.0,0.00019178,2]
[350020464,1737571838850,-500.0,0.00019178,2]
[350020465,1737571838861,-1995.08,0.00019178,2]
[350020466,1737571838871,-1275.83,0.00019178,2]
[350020467,1737571838880,-500.0,0.00019178,2]
[350020468,1737571838890,-1398.45,0.00019178,2]
[350020469,1737571838899,-658.47,0.00019178,2]
[350020470,1737571838909,-500.0,0.00019178,2]
[350020471,1737571838918,-320.7878281,0.00019178,2]
[350020472,1737571838929,-500.0,0.00019178,2]
[350020473,1737571838938,-1788.12,0.00019178,2]
[350020474,1737571838948,-7518.65,0.00019178,2]
[350020475,1737571838957,-500.0,0.00019178,2]
[350020476,1737571838966,-500.0,0.00019178,2]
[350020477,1737571838975,-1657.53,0.00019178,2]
[350020478,1737571838985,-841.93,0.00019178,2]
[350020479,1737571838995,-170.503294,0.00019178,2]
[350020480,1737571839004,-204.04919965,0.0001918,2]
[350020481,1737571839014,-500.0,0.0001918,2]
[350020482,1737571839023,-500.0,0.0001918,2]
[350020483,1737571839032,-500.0,0.0001918,2]
[350020484,1737571839042,-500.0,0.0001918,2]
[350020485,1737571839051,-500.39592519,0.0001918,2]
[350020486,1737571839066,-500.0,0.0001918,2]
[350020487,1737571839075,-500.0,0.0001918,2]
[350020488,1737571839085,-500.0,0.0001918,2]
[350020489,1737571839094,-500.0,0.0001918,2]
[350020490,1737571839103,-500.0,0.0001918,2]
[350020491,1737571839114,-500.0,0.0001918,2]
[350020492,1737571839123,-451.63049277,0.0001918,2]
[350020493,1737571839135,-500.0,0.0001918,2]